bitfinex-derivatives/quotes_SOLF0:USTF0_20251211
["timestamp","ask_amount","ask_price","bid_price","bid_amount"]
[1765449236157,3.3,130.57,130.53,74.26269147]
[1765449236666,3.3,130.57,130.53,71.9539]
[1765449236962,3.35530067,130.56,130.54,0.05207157]
[1765449242864,3.3,130.55,130.48,65.08]
[1765449243070,3.3,130.55,130.49,6.8963]
[1765449243071,10.1934,130.55,130.49,6.8963]
[1765449243270,3.3,130.54,130.49,6.8963]
[1765449244073,3.3,130.52,130.5,0.04854034]
[1765449245069,0.05250503,130.53,130.5,6.94424034]
[1765449245373,3.18250503,130.53,130.5,6.94424034]
[1765449248378,0.05250503,130.53,130.51,10.50601846]
[1765449248570,3.13,130.58,130.52,65.08]
[1765449248769,3.13,130.58,130.53,3.61091846]
[1765449249569,3.1822507,130.57,130.54,0.05645541]
[1765449249763,3.1822507,130.57,130.54,0.0531162]
[1765449252978,3.1822507,130.57,130.54,6.9468162]
[1765449259679,0.0522507,130.57,130.54,6.9468162]
[1765449260074,3.2422507,130.57,130.54,6.9468162]
[1765449260382,3.2422507,130.57,130.54,0.0531162]
[1765449262479,3.19,130.56,130.54,0.0531162]
[1765449264572,3.2422507,130.57,130.54,0.0531162]
[1765449264771,0.0522507,130.57,130.56,3.61091846]
[1765449266982,0.0522507,130.57,130.56,68.69091846]
[1765449275686,0.0522507,130.57,130.56,65.08]
[1765449275987,0.0522507,130.57,130.56,68.69091846]
[1765449278087,0.0522507,130.57,130.56,65.08]
[1765449279185,3.2122507,130.57,130.54,3.66403466]
[1765449279386,3.2122507,130.57,130.55,65.06]
[1765449280992,0.0522507,130.57,130.55,68.67091846]
[1765449281881,0.0522507,130.57,130.55,75.56391846]
[1765449284480,3.2122507,130.57,130.55,75.56391846]
[1765449284887,0.0522507,130.57,130.55,75.56391846]
[1765449290402,0.0522507,130.57,130.55,71.953]
[1765449292711,3.16,130.56,130.54,0.0531162]
[1765449295214,3.2122507,130.57,130.54,0.0531162]
[1765449298214,3.2122507,130.57,130.54,6.9468162]
[1765449299315,0.0522507,130.57,130.54,6.9468162]
[1765449299620,0.0522507,130.57,130.55,2.3105294]
[1765449299818,0.0522507,130.57,130.55,9.2035294]
[1765449300909,3.2122507,130.57,130.55,6.893]
[1765449302511,3.2122507,130.57,130.54,2.3636456]
[1765449304017,3.2122507,130.57,130.54,9.2574456]
[1765449304721,3.2122507,130.57,130.55,65.08]
[1765449305525,3.2122507,130.57,130.54,9.2574456]
[1765449305713,3.2122507,130.57,130.55,65.08]
[1765449306324,3.2122507,130.57,130.54,9.2574456]
[1765449306520,3.2122507,130.57,130.55,65.08]
[1765449307426,3.2122507,130.57,130.54,9.2574456]
[1765449307626,3.2122507,130.57,130.55,65.08]
[1765449308621,0.0522507,130.57,130.55,65.08]
[1765449308825,0.0522507,130.57,130.56,2.3105294]
[1765449317637,3.4822507,130.57,130.55,65.08]
[1765449317837,3.4822507,130.57,130.54,0.0531162]
[1765449318036,3.4822507,130.57,130.54,65.1131162]
[1765449327529,0.0522507,130.57,130.55,2.3105294]
[1765449328945,0.0522507,130.57,130.55,9.2037294]
[1765449330640,3.43,130.6,130.56,6.8925]
[1765449330841,3.43,130.6,130.57,65.08]
[1765449331137,3.43,130.6,130.57,67.3905294]
[1765449331638,3.48517968,130.6,130.57,67.44497287]
[1765449332441,0.05517968,130.6,130.57,67.44497287]
[1765449334847,3.30517968,130.6,130.57,67.44497287]
[1765449335254,3.30517968,130.6,130.57,65.11444347]
[1765449335648,3.25,130.59,130.57,65.11444347]
[1765449338043,3.25,130.58,130.57,65.11444347]
[1765449338251,3.25,130.58,130.53,2.3105294]
[1765449338448,3.25,130.58,130.53,67.3705294]
[1765449339150,3.25,130.56,130.54,0.05455234]
[1765449347858,3.25,130.56,130.54,2.36508174]
[1765449351859,3.25,130.56,130.54,0.05455234]
[1765449352155,3.25,130.56,130.54,2.36508174]
[1765449358859,3.25,130.56,130.54,0.05455234]
[1765449361159,0.05724741,130.57,130.55,3.60976618]
[1765449362967,0.05724741,130.57,130.55,10.50296618]
[1765449367871,3.15,130.61,130.57,6.892]
[1765449368067,3.15,130.61,130.57,75.58176618]
[1765449368874,0.05159898,130.6,130.58,0.05235215]
[1765449370164,3.20159898,130.6,130.58,0.05235215]
[1765449372669,0.05159898,130.6,130.58,6.94385215]
[1765449372871,3.44,130.64,130.59,3.60976618]
[1765449373874,3.49637827,130.63,130.59,10.50046618]
[1765449374069,3.49637827,130.63,130.6,0.04991132]
[1765449390086,10.38557827,130.63,130.6,0.04991132]
[1765449390290,3.44,130.62,130.6,0.04991132]
[1765449420010,5.41917937,130.61,130.6,0.04991132]
[1765449421312,3.11,130.61,130.6,0.04991132]
[1765449459257,3.35,130.6,130.56,21.28141631]
[1765449459463,3.35,130.6,130.56,67.34917937]
[1765449459763,3.35,130.6,130.56,65.04]
[1765449460262,3.35,130.58,130.57,0.0495077]
[1765449475066,3.39852737,130.59,130.57,0.0495077]
[1765449475873,3.39852737,130.59,130.57,6.9416077]
[1765449476672,3.39852737,130.59,130.57,9.25078707]
[1765449480074,0.04852737,130.59,130.57,9.25078707]
[1765449480278,3.39852737,130.59,130.58,2.30917937]
[1765449480675,3.39852737,130.59,130.58,65.06]
[1765449488282,0.04852737,130.59,130.58,65.06]
[1765449489685,3.42,130.61,130.58,75.55899525]
[1765449489876,0.94576065,130.61,130.59,1.79]
[1765449490776,1.00197861,130.61,130.59,1.79]
[1765449490981,1.00197861,130.61,130.59,8.6809]
[1765449499686,1.00197861,130.61,130.58,65.06]
[1765449499893,1.00197861,130.61,130.58,66.85]
[1765449500592,1.00197861,130.61,130.59,1.79]
[1765449501294,1.00197861,130.61,130.6,65.06]
[1765449514702,1.00197861,130.61,130.59,1.79]
[1765449514903,1.00197861,130.61,130.59,66.83]
[1765449516305,1.00197861,130.61,130.6,1.8]
[1765449520907,1.00197861,130.61,130.59,65.04]
[1765449521311,1.00197861,130.61,130.6,1.8]
[1765449527013,0.05621796,130.61,130.6,1.8]
[1765449527208,0.05621796,130.61,130.6,5.40739525]
[1765449536017,0.00045629,130.61,130.6,5.40739525]
[1765449542232,3.24045629,130.61,130.6,1.8]
[1765449542422,3.24045629,130.61,130.6,66.84]
[1765449544434,3.24045629,130.61,130.6,65.04]
[1765449544634,3.24045629,130.61,130.6,66.84]
[1765449554647,0.00045629,130.61,130.6,66.84]
[1765449555143,0.00045629,130.61,130.58,18.97223694]
[1765449555343,0.00045629,130.61,130.59,66.84]
[1765449557649,0.00045629,130.61,130.6,1.8]
[1765449587985,0.00045629,130.61,130.59,90.90333694]
[1765449587986,0.00045629,130.61,130.59,92.70333694]
[1765449588287,0.00045629,130.61,130.6,1.8]
[1765449622717,0.00045629,130.61,130.59,71.9311]
[1765449622919,0.00045629,130.61,130.59,65.04]
[1765449624420,0.00045629,130.61,130.59,66.84]
[1765449624913,0.00045629,130.61,130.6,1.8]
[1765449643532,0.00045629,130.61,130.59,92.70323694]
[1765449644231,0.00045629,130.61,130.6,1.8]
[1765449659737,0.00045629,130.61,130.58,18.97223694]
[1765449659941,0.00045629,130.61,130.57,1.8495077]
[1765449661036,0.00045629,130.61,130.58,1.8]
[1765449665033,3.31045629,130.61,130.58,1.8]
[1765449681457,3.31045629,130.61,130.57,0.0495077]
[1765449681662,3.31045629,130.61,130.57,1.8495077]
[1765449683066,3.31045629,130.61,130.58,1.8]
[1765449683266,0.00045629,130.61,130.58,1.8]
[1765449683563,0.00045629,130.61,130.59,1.8]
[1765449692369,3.37045629,130.61,130.58,18.97223694]
[1765449692669,3.37045629,130.61,130.57,20.82174464]
[1765449693072,3.37045629,130.61,130.58,1.8]
[1765449695968,3.14,130.6,130.57,0.0495077]
[1765449696566,3.14,130.6,130.57,1.8495077]
[1765449704779,3.14,130.6,130.57,0.0495077]
[1765449705483,10.0308,130.6,130.57,0.0495077]
[1765449705682,3.14,130.59,130.57,0.0495077]
[1765449706683,12.34035085,130.59,130.57,0.0495077]
[1765449706874,3.14,130.58,130.53,8.6939]
[1765449707079,3.14,130.56,130.53,6.8939]
[1765449707282,3.14,130.56,130.53,8.6939]
[1765449707872,3.18957611,130.56,130.53,8.74330017]
[1765449708481,0.04957611,130.56,130.54,1.8]
[1765449709183,3.18957611,130.56,130.54,1.8]
[1765449711994,3.18957611,130.56,130.53,1.84940017]
[1765449726801,0.04957611,130.56,130.54,1.8]
[1765449727098,0.04957611,130.56,130.55,66.88]
[1765449739395,0.04957611,130.56,130.55,70.49042645]
[1765449739598,3.43,130.6,130.56,1.8]
[1765449740709,3.43,130.58,130.57,0.05605452]
[1765449741296,3.43,130.58,130.57,1.85605452]
[1765449753717,3.43,130.58,130.57,0.05605452]
[1765449758420,3.43,130.58,130.52,66.86]
[1765449759323,3.23,130.55,130.54,0.05785796]
[1765449786064,3.23,130.55,130.52,65.06]
[1765449786650,3.22,130.54,130.52,65.06]
[1765449787058,3.22,130.54,130.52,65.11007733]
[1765449787257,3.22,130.53,130.52,0.05007733]
[1765449787767,3.22,130.52,130.48,1.92]
[1765449788061,3.22,130.52,130.47,4.23172874]
[1765449788661,0.0482186,130.51,130.48,0.0570334]
[1765449788859,3.22,130.5,130.48,0.0570334]
[1765449789762,3.22,130.5,130.48,1.9770334]
[1765449791067,3.22,130.5,130.48,0.0570334]
[1765449806886,10.116,130.5,130.48,0.0570334]
[1765449807088,3.41,130.49,130.48,0.0570334]
[1765449809785,3.41,130.48,130.45,2.31172874]
[1765449810887,3.46370367,130.48,130.45,2.36663972]
[1765449811283,3.46370367,130.48,130.45,4.28663972]
[1765449812188,3.46370367,130.48,130.45,1.97491098]
[1765449812382,3.46370367,130.48,130.45,4.28663972]
[1765449816489,3.46370367,130.48,130.46,1.92]
[1765449817391,3.46370367,130.48,130.46,4.23172874]
[1765449817593,3.46370367,130.48,130.46,2.31172874]
[1765449819297,3.46370367,130.48,130.45,4.28663972]
[1765449819494,3.46370367,130.48,130.46,1.92]
[1765449819890,3.46370367,130.48,130.45,2.36663972]
[1765449820091,3.46370367,130.48,130.45,4.28663972]
[1765449820286,3.21,130.47,130.45,2.36663972]
[1765449822698,3.21,130.47,130.45,0.05491098]
[1765449824103,3.21,130.47,130.45,1.97491098]
[1765449835803,0.05370367,130.48,130.45,1.97491098]
[1765449836008,0.05370367,130.48,130.47,1.92]
[1765449837201,0.05370367,130.48,130.47,4.23172874]
[1765449839612,0.05370367,130.48,130.47,1.92]
[1765449840810,3.21,130.5,130.48,1.92]
[1765449841807,3.2603403,130.5,130.48,1.97709245]
[1765449858223,3.2603403,130.5,130.48,0.05709245]
[1765449875027,10.1564403,130.5,130.48,0.05709245]
[1765449875229,3.16,130.49,130.48,0.05709245]
[1765449888652,6.8972,130.48,130.44,4.34213554]
[1765449888852,3.16,130.47,130.44,6.32213554]
[1765449889352,3.16,130.47,130.45,1.98]
[1765449889654,3.21639832,130.47,130.45,2.03606268]
[1765449889953,10.11409832,130.47,130.45,2.03606268]
[1765449890255,3.16,130.46,130.45,2.03606268]
[1765449890952,10.11409832,130.47,130.45,2.03606268]
[1765449892957,3.21639832,130.47,130.45,2.03606268]
[1765449901160,3.16,130.5,130.46,1.98]
[1765449901363,3.16,130.54,130.49,1.98]
[1765449902155,0.05854935,130.53,130.5,0.05823978]
[1765449902356,3.16,130.52,130.5,0.05823978]
[1765449902556,3.16,130.52,130.5,2.03823978]
[1765449908165,0.05854935,130.53,130.5,2.03823978]
[1765449908372,0.05854935,130.53,130.51,1.97]
[1765449908966,3.32854935,130.53,130.51,1.97]
[1765449909966,3.32854935,130.53,130.5,0.05823978]
[1765449910559,3.27,130.52,130.5,0.05823978]
[1765449911868,3.27,130.52,130.5,2.02823978]
[1765449912263,3.27,130.52,130.5,0.05823978]
[1765449916471,3.21854935,130.53,130.51,1.97]
[1765449917872,3.21854935,130.53,130.5,4.34107814]
[1765449921270,3.21854935,130.53,130.5,2.02823978]
[1765449928992,0.05854935,130.53,130.52,1.97]
[1765449936590,3.39,130.57,130.52,8.8647]
[1765449936792,3.39,130.57,130.53,1.97]
[1765449937679,3.43872701,130.56,130.54,0.05511612]
[1765449938093,3.43872701,130.56,130.54,2.02511612]
[1765449938881,3.43872701,130.56,130.54,0.05511612]
[1765449940103,5.75156537,130.56,130.54,0.05511612]
[1765449940286,3.39,130.55,130.54,0.05511612]
[1765449962216,3.39,130.55,130.51,65.1]
[1765449963111,3.39,130.55,130.52,0.05578666]
[1765449967418,3.25,130.54,130.52,0.05578666]
[1765449968726,3.25,130.54,130.52,2.07578666]
[1765449968933,3.25,130.54,130.53,2.02]
[1765449970531,3.25,130.54,130.52,11.28332502]
[1765449970830,3.25,130.54,130.52,8.97048666]
[1765449972534,3.25,130.54,130.53,2.02]
[1765449981036,3.25,130.54,130.52,8.97048666]
[1765449981235,3.25,130.54,130.52,6.95048666]
[1765449983042,3.25,130.54,130.52,8.97048666]
[1765449983840,3.25,130.54,130.52,6.95048666]
[1765449984032,3.25,130.54,130.52,8.97048666]
[1765449992960,3.25,130.54,130.52,0.05578666]
[1765449996659,3.25,130.54,130.51,65.1]
[1765449996660,3.25,130.54,130.48,25.86893694]
[1765449996850,3.25,130.54,130.48,6.8967]
[1765449997754,3.45,130.51,130.5,0.0494745]
[1765450022570,3.50323286,130.52,130.5,2.1294745]
[1765450022777,0.05323286,130.52,130.5,2.1294745]
[1765450024076,0.05323286,130.52,130.51,2.08]
[1765450030682,0.05323286,130.52,130.51,4.39129621]
[1765450031490,0.05323286,130.52,130.51,69.49129621]
[1765450035095,3.4,130.57,130.53,2.08]
[1765450035290,3.4,130.57,130.55,2.08]
[1765450036489,3.44967395,130.57,130.55,2.13841742]
[1765450038496,3.44967395,130.57,130.55,0.05841742]
[1765450038895,3.44967395,130.57,130.55,2.13841742]
[1765450044399,3.44967395,130.57,130.55,9.03151742]
[1765450045096,3.44967395,130.57,130.55,2.13841742]
[1765450057310,3.44967395,130.57,130.55,0.05841742]
[1765450057512,3.12,130.56,130.55,0.05841742]
[1765450057704,3.12,130.56,130.52,65.08]
[1765450057908,3.12,130.54,130.49,2.08]
[1765450058110,3.12,130.54,130.49,67.16]
[1765450058308,3.12,130.54,130.49,65.08]
[1765450058509,3.12,130.54,130.5,2.08]
[1765450058709,2.31129621,130.55,130.5,2.08]
[1765450058710,3.12,130.52,130.51,0.04852217]
[1765450060718,3.17303039,130.53,130.51,2.12852217]
[1765450061815,3.17303039,130.53,130.51,0.04852217]
[1765450066322,0.05303039,130.53,130.52,4.39129621]
[1765450067023,3.12,130.56,130.52,4.39129621]
[1765450067024,3.12,130.56,130.53,2.08]
[1765450068126,3.17645775,130.56,130.53,67.16]
[1765450068327,3.17645775,130.56,130.54,2.08]
[1765450068526,3.17645775,130.56,130.54,2.133365]
[1765450071038,3.17645775,130.56,130.54,4.44466121]
[1765450074549,3.17645775,130.56,130.54,2.36466121]
[1765450075751,3.17645775,130.56,130.54,4.44466121]
[1765450077347,0.05645775,130.56,130.55,2.08]
[1765450087858,3.21645775,130.56,130.55,2.08]
[1765450088160,0.05645775,130.56,130.55,2.08]
[1765450088457,3.21645775,130.56,130.55,65.08]
[1765450091958,3.21645775,130.56,130.55,67.16]
[1765450093962,3.21645775,130.56,130.54,0.053365]
[1765450094854,3.14,130.62,130.56,2.08]
[1765450095065,3.14,130.62,130.58,2.08]
[1765450095960,3.14,130.6,130.59,0.04857182]
[1765450096367,3.19117734,130.61,130.59,2.12857182]
[1765450109383,3.19117734,130.61,130.59,0.04857182]
[1765450109679,3.19117734,130.61,130.55,8.9729]
[1765450109872,3.14,130.6,130.55,8.9729]
[1765450110484,3.14,130.6,130.55,6.8929]
[1765450110782,3.14,130.59,130.56,0.0540577]
[1765450110983,3.19657304,130.59,130.56,0.0540577]
[1765450115883,10.08797304,130.59,130.56,0.0540577]
[1765450116184,3.26,130.58,130.56,0.0540577]
[1765450117086,3.26,130.57,130.56,0.0540577]
[1765450117888,3.26,130.57,130.52,9.0845]
[1765450118977,3.26,130.55,130.53,0.04947544]
[1765450139684,3.26,130.55,130.53,2.23947544]
[1765450139890,3.31128196,130.56,130.54,2.19]
[1765450140090,0.05128196,130.56,130.54,67.27]
[1765450140290,0.05128196,130.56,130.55,2.19]
[1765450140799,0.05128196,130.56,130.55,5.80019495]
[1765450141192,3.26,130.6,130.56,2.19]
[1765450141899,3.26,130.59,130.56,2.19]
[1765450142297,3.3182245,130.59,130.56,2.24831941]
[1765450153008,10.2095245,130.59,130.56,0.05831941]
[1765450153207,3.3,130.58,130.56,0.05831941]
[1765450164320,10.1918,130.58,130.56,0.05831941]
[1765450164508,3.3,130.57,130.56,0.05831941]
[1765450176418,12.5025079,130.57,130.51,9.2050079]
[1765450176625,3.32,130.56,130.51,11.3950079]
[1765450176919,3.32,130.56,130.52,2.19]
[1765450177510,3.32,130.54,130.53,0.05659958]
[1765450180320,3.32,130.54,130.49,6.8961]
[1765450180631,3.32,130.54,130.5,2.25]
[1765450182717,3.32,130.54,130.5,9.1457]
[1765450182914,3.32,130.54,130.52,2.25]
[1765450185520,3.32,130.54,130.48,6.8967]
[1765450185717,3.32,130.51,130.48,9.1467]
[1765450188924,3.32,130.51,130.49,2.25]
[1765450192024,3.32,130.55,130.5,67.35]
[1765450192229,3.32,130.55,130.51,4.5600079]
[1765450193221,3.37531416,130.54,130.52,2.30783391]
[1765450197133,3.37531416,130.54,130.52,0.05783391]
[1765450197733,10.26931416,130.54,130.52,0.05783391]
[1765450197935,3.32,130.53,130.52,0.05783391]
[1765450205240,3.32,130.53,130.52,2.30783391]
[1765450205544,3.49531416,130.54,130.52,2.30783391]
[1765450205745,3.49531416,130.54,130.52,4.61784181]
[1765450208537,3.49531416,130.54,130.53,2.25]
[1765450209842,3.49531416,130.54,130.52,4.61784181]
[1765450210039,3.44,130.59,130.53,2.25]
[1765450210231,3.44,130.59,130.56,4.5600079]
[1765450210435,3.44,130.59,130.57,2.25]
[1765450211031,3.48957324,130.59,130.57,0.04916908]
[1765450225054,3.48957324,130.59,130.57,2.28916908]
[1765450225354,3.48957324,130.59,130.57,0.04916908]
[1765450227658,3.48957324,130.59,130.57,2.28916908]
[1765450228852,0.04957324,130.59,130.57,9.18106908]
[1765450229056,3.25,130.61,130.59,2.24]
[1765450229256,3.25,130.64,130.59,2.24]
[1765450230055,3.25,130.62,130.6,2.29307713]
[1765450236954,3.25,130.62,130.6,0.05307713]
[1765450245459,0.04949071,130.63,130.62,2.24]
[1765450246063,0.04949071,130.63,130.62,67.3]
[1765450249163,3.24,130.68,130.64,2.24]
[1765450250066,0.05093858,130.67,130.65,2.29345483]
[1765450250269,0.05093858,130.67,130.66,65.04]
[1765450253669,0.05093858,130.67,130.66,67.28]
[1765450253873,3.29093858,130.67,130.66,67.28]
[1765450255666,3.29093858,130.67,130.66,65.04]
[1765450258676,3.29093858,130.67,130.66,67.28]
[1765450259676,3.29093858,130.67,130.66,65.04]
[1765450260071,3.29093858,130.67,130.65,67.33345483]
[1765450260877,3.29093858,130.67,130.65,65.09345483]
[1765450264585,3.29093858,130.67,130.65,67.33345483]
[1765450269586,3.29093858,130.67,130.65,65.09345483]
[1765450273889,3.29093858,130.67,130.65,67.33345483]
[1765450274094,3.29093858,130.67,130.65,65.09345483]
[1765450275596,3.29093858,130.67,130.65,67.33345483]
[1765450284092,3.29093858,130.67,130.66,2.24]
[1765450285206,3.29093858,130.67,130.65,67.33345483]
[1765450287508,3.29093858,130.67,130.66,2.24]
[1765450291209,3.29093858,130.67,130.65,67.33345483]
[1765450293101,3.29093858,130.67,130.66,2.24]
[1765450298116,0.05093858,130.67,130.66,2.24]
[1765450307136,0.00093858,130.67,130.66,2.24]
[1765450309842,3.12,130.71,130.66,2.24]
[1765450310051,3.12,130.71,130.69,2.19]
[1765450310933,3.17674751,130.71,130.69,2.2477197]
[1765450312042,0.05674751,130.71,130.69,2.2477197]
[1765450313138,0.05674751,130.71,130.69,67.2677197]
[1765450313441,0.05674751,130.71,130.7,2.19]
[1765450313643,0.05674751,130.71,130.7,4.49689411]
[1765450321647,3.12,130.75,130.72,2.19]
[1765450321844,3.12,130.75,130.73,2.19]
[1765450322045,10.0026,130.76,130.73,2.19]
[1765450322451,10.0029,130.75,130.73,2.19]
[1765450322649,3.1690575,130.75,130.73,2.24168231]
[1765450324250,10.0520575,130.75,130.73,2.24168231]
[1765450327253,3.17,130.74,130.73,0.05168231]
[1765450329655,3.17,130.74,130.73,2.24168231]
[1765450329862,3.17,130.74,130.73,0.05168231]
[1765450331660,10.1020575,130.75,130.73,2.24168231]
[1765450332665,3.2190575,130.75,130.73,2.24168231]
[1765450332956,0.0490575,130.75,130.73,4.54857642]
[1765450333160,0.0490575,130.75,130.74,2.19]
[1765450339867,3.19,130.8,130.74,2.19]
[1765450340662,3.19,130.82,130.77,2.18]
[1765450340856,3.19,130.82,130.79,2.18]
[1765450340857,0.0537691,130.81,130.79,2.18]
[1765450341766,3.2437691,130.81,130.79,2.18]
[1765450346869,0.0537691,130.81,130.79,2.18]
[1765450347667,3.2437691,130.81,130.79,2.18]
[1765450349165,0.0537691,130.81,130.79,2.18]
[1765450353876,3.19,130.8,130.78,0.0499202]
[1765450354072,6.78975796,130.8,130.78,0.0499202]
[1765450354277,3.19,130.79,130.78,0.0499202]
[1765450358780,3.14,130.78,130.76,2.18]
[1765450359674,3.18906741,130.78,130.76,2.23788656]
[1765450361184,0.04906741,130.78,130.76,2.23788656]
[1765450361974,0.04906741,130.78,130.76,9.11988656]
[1765450362177,0.04906741,130.78,130.77,2.19]
[1765450367891,3.18906741,130.78,130.76,0.05788656]
[1765450368094,0.04906741,130.78,130.76,2.24788656]
[1765450370191,3.18906741,130.78,130.76,2.24788656]
[1765450370583,3.14,130.77,130.76,0.05788656]
[1765450375495,0.04906741,130.78,130.76,2.24788656]
[1765450381395,3.18906741,130.78,130.76,2.24788656]
[1765450381602,3.18906741,130.78,130.76,0.05788656]
[1765450382304,10.07036741,130.78,130.76,0.05788656]
[1765450382492,3.14,130.77,130.76,0.05788656]
[1765450391013,0.04906741,130.78,130.76,2.24788656]
[1765450400813,0.04906741,130.78,130.77,4.49221938]
[1765450401714,3.17,130.81,130.78,2.19]
[1765450401908,12.35111938,130.83,130.78,2.19]
[1765450402108,3.17,130.82,130.78,2.19]
[1765450402804,0.05705059,130.81,130.79,2.24759456]
[1765450403912,3.22705059,130.81,130.79,2.24759456]
[1765450404910,3.22705059,130.81,130.79,0.05759456]
[1765450404911,3.17,130.8,130.79,0.05759456]
[1765450416026,6.93685059,130.81,130.79,2.24759456]
[1765450416522,10.28685059,130.81,130.79,2.24759456]
[1765450416712,3.35,130.8,130.79,0.05759456]
[1765450435351,3.35,130.78,130.74,9.0729]
[1765450435542,3.35,130.77,130.74,9.0729]
[1765450436548,3.40040696,130.77,130.74,9.12905861]
[1765450439855,3.35,130.75,130.74,0.05615861]
[1765450441454,3.35,130.74,130.68,9.076]
[1765450441653,3.35,130.72,130.69,2.19]
[1765450442051,3.35,130.72,130.68,2.19]
[1765450442252,3.35,130.7,130.68,2.19]
[1765450442452,3.35,130.7,130.69,0.05216073]
[1765450445657,3.47914771,130.71,130.69,2.24216073]
[1765450445957,0.04914771,130.71,130.69,2.24216073]
[1765450446153,0.04914771,130.71,130.69,4.54438011]
[1765450446553,0.04914771,130.71,130.7,2.19]
[1765450454357,107.0612,130.76,130.69,2.35438011]
[1765450454358,3.43,130.76,130.72,2.19]
[1765450455263,0.04928145,130.75,130.73,2.24106474]
[1765450461463,3.47928145,130.75,130.73,0.05106474]
[1765450462870,3.43,130.74,130.73,0.05106474]
[1765450463067,3.43,130.74,130.69,2.19]
[1765450464166,3.43,130.74,130.7,2.24412025]
[1765450464358,3.43,130.72,130.7,2.24412025]
[1765450470470,3.43,130.72,130.7,0.05412025]
[1765450470674,3.43,130.71,130.7,0.05412025]
[1765450481284,3.35,130.69,130.65,2.19]
[1765450482175,3.39930879,130.68,130.66,0.05232073]
[1765450482377,3.39930879,130.68,130.66,2.29232073]
[1765450485787,0.04930879,130.68,130.66,2.29232073]
[1765450491386,0.04930879,130.68,130.66,9.17972073]
[1765450491790,0.04930879,130.68,130.67,2.24]
[1765450493187,3.39930879,130.68,130.67,2.24]
[1765450493391,3.39930879,130.68,130.66,2.29232073]
[1765450494792,0.04930879,130.68,130.66,2.29232073]
[1765450495294,10.2347,130.72,130.68,2.24]
[1765450495679,3.35,130.71,130.68,2.24]
[1765450496284,3.40451396,130.71,130.68,2.29746077]
[1765450497787,3.40451396,130.71,130.68,0.05746077]
[1765450498887,0.05451396,130.71,130.68,2.29746077]
[1765450499087,3.40451396,130.71,130.68,2.29746077]
[1765450503894,0.05451396,130.71,130.69,6.8858]
[1765450504094,0.05451396,130.71,130.7,2.24]
[1765450505295,0.05451396,130.71,130.7,67.24]
[1765450505800,0.05451396,130.71,130.7,65.0]
[1765450505801,3.38451396,130.71,130.7,65.0]
[1765450508418,3.38451396,130.71,130.68,2.29746077]
[1765450510422,3.38451396,130.71,130.68,0.05746077]
[1765450512020,3.11,130.7,130.68,0.05746077]
[1765450516118,9.9955,130.7,130.68,0.05746077]
[1765450516312,3.11,130.69,130.68,0.05746077]
[1765450524232,3.11,130.67,130.65,65.02]
[1765450525227,3.15989936,130.67,130.65,65.07672405]
[1765450527335,3.11,130.66,130.6,2.24]
[1765450527634,3.11,130.63,130.6,2.24]
[1765450528427,3.16586514,130.63,130.6,2.29291179]
[1765450532636,3.11,130.62,130.6,0.05291179]
[1765450534035,3.11,130.61,130.6,0.05291179]
[1765450540846,3.22,130.59,130.56,65.02]
[1765450541040,3.22,130.59,130.56,67.26]
[1765450541840,3.22,130.59,130.56,69.6167]
[1765450541841,3.26973304,130.59,130.56,69.6167]
[1765450542342,3.22,130.58,130.56,69.6167]
[1765450543439,0.04973304,130.59,130.57,2.24]
[1765450543644,0.04973304,130.59,130.58,4.54631428]
[1765450550254,3.26973304,130.59,130.57,2.24]
[1765450550441,3.26973304,130.59,130.56,67.3767]
[1765450550442,3.26973304,130.59,130.56,69.6167]
[1765450550638,3.26973304,130.59,130.57,2.24]
[1765450556868,0.04973304,130.59,130.57,2.24]
[1765450558770,0.04973304,130.59,130.58,4.54631428]
[1765450559355,3.22,130.63,130.59,2.24]
[1765450559663,3.22,130.63,130.6,4.54631428]
[1765450560064,3.22,130.63,130.61,2.24]